bitfinex/quotes_BTCUSD_20250115
["timestamp","ask_amount","ask_price","bid_price","bid_amount"]
[1736934958247,0.51173068,96951.0,96950.0,0.26520273]
[1736934958648,0.52073068,96951.0,96950.0,0.25220271]
[1736934958800,0.49773068,96951.0,96950.0,0.25220271]
[1736934959007,0.47836362,96951.0,96950.0,0.25220271]
[1736934959244,0.10922692,96951.0,96950.0,0.25220271]
[1736934959446,0.006,96951.0,96950.0,0.33340271]
[1736934959660,0.0238477,96951.0,96950.0,0.33340271]
[1736934959860,0.006,96951.0,96950.0,0.33340271]
[1736934960061,0.0178477,96951.0,96950.0,0.33340271]
[1736934960305,0.0218477,96951.0,96950.0,0.33340271]
[1736934960477,0.005,96951.0,96950.0,0.33340271]
[1736934960682,0.0228477,96951.0,96950.0,0.38090271]
[1736934960905,0.0218477,96951.0,96950.0,0.38090271]
[1736934961293,0.0228477,96951.0,96950.0,0.38090271]
[1736934961925,0.005,96951.0,96950.0,0.38090271]
[1736934962101,0.0228477,96951.0,96950.0,0.38090271]
[1736934962484,0.15,96956.0,96950.0,0.38090271]
[1736934962874,0.0178477,96953.0,96950.0,0.38090271]
[1736934963073,0.15,96956.0,96951.0,0.206289]
[1736934963373,0.15,96956.0,96951.0,0.412578]
[1736934963627,0.206244,96973.0,96953.0,0.078]
[1736934963829,0.15,96970.0,96955.0,0.078]
[1736934964023,0.25422692,96970.0,96955.0,0.078]
[1736934964381,0.0178477,96957.0,96955.0,0.078]
[1736934964582,0.15,96968.0,96955.0,0.078]
[1736934964789,0.0178477,96957.0,96955.0,0.078]
[1736934966199,0.03402414,96957.0,96955.0,0.078]
[1736934966407,0.03973442,96957.0,96955.0,0.078]
[1736934966860,0.32835362,96956.0,96955.0,0.078]
[1736934967062,0.206289,96951.0,96950.0,0.30055661]
[1736934967469,0.2241367,96951.0,96950.0,0.30055661]
[1736934968711,0.2241367,96951.0,96950.0,0.24305661]
[1736934968890,0.27863889,96951.0,96950.0,0.24305661]
[1736934969920,0.42863889,96951.0,96950.0,0.24305661]
[1736934970279,0.53286581,96951.0,96950.0,0.24305661]
[1736934970484,0.53386581,96951.0,96950.0,0.24305661]
[1736934970697,0.53286581,96951.0,96950.0,0.24305661]
[1736934970881,0.53386581,96951.0,96950.0,0.24305661]
[1736934972895,0.53286581,96951.0,96950.0,0.24305661]
[1736934973106,0.53386581,96951.0,96950.0,0.24305661]
[1736934973420,0.53286581,96951.0,96950.0,0.24305661]
[1736934973624,0.53386581,96951.0,96950.0,0.24305661]
[1736934975294,0.53386581,96951.0,96950.0,0.24218223]
[1736934976076,0.53686581,96951.0,96950.0,0.24218223]
[1736934976240,0.53286581,96951.0,96950.0,0.24218223]
[1736934976454,0.53386581,96951.0,96950.0,0.24218223]
[1736934976898,0.53286581,96951.0,96950.0,0.24218223]
[1736934977295,0.53786581,96951.0,96950.0,0.24218223]
[1736934977706,0.53686581,96951.0,96950.0,0.24218223]
[1736934977906,0.53286581,96951.0,96950.0,0.24218223]
[1736934978142,0.53386581,96951.0,96950.0,0.24218223]
[1736934979427,0.53686581,96951.0,96950.0,0.24218223]
[1736934979749,0.53586581,96951.0,96950.0,0.24218223]
[1736934979903,0.54486581,96951.0,96950.0,0.24218223]
[1736934980106,0.54186581,96951.0,96950.0,0.24218223]
[1736934980309,0.53286581,96951.0,96950.0,0.24218223]
[1736934980519,0.54086581,96951.0,96950.0,0.24218223]
[1736934981283,0.53886581,96951.0,96950.0,0.24218223]
[1736934982453,0.53286581,96951.0,96950.0,0.24218223]
[1736934982625,0.53486581,96951.0,96950.0,0.24218223]
[1736934982827,0.54086581,96951.0,96950.0,0.24218223]
[1736934983055,0.53286581,96951.0,96950.0,0.24218223]
[1736934983419,0.53886581,96951.0,96950.0,0.24218223]
[1736934983614,0.53886581,96951.0,96950.0,0.22918221]
[1736934983921,0.54086581,96951.0,96950.0,0.22918221]
[1736934986417,0.48636362,96951.0,96950.0,0.22918221]
[1736934987394,0.48815744,96951.0,96950.0,0.22918221]
[1736934988598,0.48815744,96951.0,96950.0,0.21618219]
[1736934988828,0.47030974,96951.0,96950.0,0.21618219]
[1736934989198,0.48815744,96951.0,96950.0,0.21618219]
[1736934989817,0.47030974,96951.0,96950.0,0.21618219]
[1736934990031,0.48815744,96951.0,96950.0,0.21618219]
[1736934993594,0.48815744,96951.0,96950.0,0.20318217]
[1736934995919,0.49858881,96951.0,96950.0,0.20318217]
[1736934998429,0.49858881,96951.0,96950.0,0.19018215]
[1736934998997,0.50478881,96951.0,96950.0,0.19018215]
[1736934999688,0.49678881,96951.0,96950.0,0.19018215]
[1736935000090,0.50478881,96951.0,96950.0,0.19018215]
[1736935000294,0.57417772,96951.0,96950.0,0.19018215]
[1736935000617,0.50278881,96951.0,96950.0,0.19018215]
[1736935001022,0.49878881,96951.0,96950.0,0.19018215]
[1736935002210,0.49678881,96951.0,96950.0,0.19018215]
[1736935002538,0.49878881,96951.0,96950.0,0.19018215]
[1736935002979,0.50378881,96951.0,96950.0,0.19018215]
[1736935003586,0.50378881,96951.0,96950.0,0.17718213]
[1736935004110,0.50178881,96951.0,96950.0,0.17718213]
[1736935004314,0.49678881,96951.0,96950.0,0.17718213]
[1736935005601,0.50578881,96951.0,96950.0,0.17718213]
[1736935005899,0.49878881,96951.0,96950.0,0.17718213]
[1736935006102,0.49678881,96951.0,96950.0,0.17718213]
[1736935006334,0.50578881,96951.0,96950.0,0.17718213]
[1736935006506,0.49958881,96951.0,96950.0,0.17718213]
[1736935006713,0.50578881,96951.0,96950.0,0.17718213]
[1736935008477,0.50578881,96951.0,96950.0,0.16418211]
[1736935011791,0.50570881,96951.0,96950.0,0.16418211]
[1736935012237,0.59739811,96951.0,96950.0,0.16418211]
[1736935012859,0.50570881,96951.0,96950.0,0.16418211]
[1736935013566,0.50570881,96951.0,96950.0,0.15118209]
[1736935014756,0.49958881,96951.0,96950.0,0.15118209]
[1736935015129,0.01079382,96951.0,96950.0,0.27948209]
[1736935015272,0.14832777,96951.0,96950.0,0.27948209]
[1736935015864,0.00879382,96951.0,96950.0,0.27948209]
[1736935016086,0.00179382,96951.0,96950.0,0.35016205]
[1736935016291,0.00379382,96951.0,96950.0,0.35016205]
[1736935016708,0.00179382,96951.0,96950.0,0.27948209]
[1736935031121,0.00179382,96951.0,96950.0,0.58892209]
[1736935035103,0.00179382,96951.0,96950.0,0.58643805]
[1736935035317,0.00179382,96951.0,96950.0,0.79272905]
[1736935037392,0.00279382,96951.0,96950.0,0.79372905]
[1736935037745,0.00179382,96951.0,96950.0,0.9070667]
[1736935038296,0.00279382,96951.0,96950.0,0.9080667]
[1736935039903,0.00179382,96951.0,96950.0,0.9070667]
[1736935040130,0.00279382,96951.0,96950.0,0.9160667]
[1736935040619,0.00279382,96951.0,96950.0,0.9130667]
[1736935040740,0.00279382,96951.0,96950.0,0.9170667]
[1736935041603,0.00266968,96951.0,96950.0,0.9170667]
[1736935044995,0.00266968,96951.0,96950.0,0.9144422]
[1736935045158,0.00266968,96951.0,96950.0,1.0144422]
[1736935046170,0.00266968,96951.0,96950.0,0.9144422]
[1736935046431,0.00266968,96951.0,96950.0,0.80010455]
[1736935054650,0.00266968,96951.0,96950.0,0.46551355]
[1736935055560,0.00266968,96951.0,96950.0,0.46151355]
[1736935055886,0.00266968,96951.0,96950.0,0.45751355]
[1736935056110,0.00166968,96951.0,96950.0,0.45751355]
[1736935056258,0.00266968,96951.0,96950.0,0.46051355]
[1736935056469,0.00266968,96951.0,96950.0,0.45851355]
[1736935056879,0.00266968,96951.0,96950.0,0.46817719]
[1736935057129,0.00166968,96951.0,96950.0,0.46717719]
[1736935057332,0.00166968,96951.0,96950.0,0.46917719]
[1736935057758,0.00166968,96951.0,96950.0,0.46717719]
[1736935058117,0.00166968,96951.0,96950.0,0.46917719]
[1736935058322,0.00166968,96951.0,96950.0,0.45951355]
[1736935058722,0.00166968,96951.0,96950.0,0.45751355]
[1736935059003,0.00166968,96951.0,96950.0,0.45951355]
[1736935060398,0.00166968,96951.0,96950.0,0.66180455]
[1736935060813,0.00166968,96951.0,96950.0,0.66580455]
[1736935061014,0.00166968,96951.0,96950.0,0.66380455]
[1736935062280,0.00166968,96951.0,96950.0,0.66580455]
[1736935065010,0.00166968,96951.0,96950.0,0.45951355]
[1736935068191,0.00166968,96951.0,96950.0,0.45551355]
[1736935068386,0.00166968,96951.0,96950.0,0.45751355]
[1736935068587,0.00166968,96951.0,96950.0,0.45951355]
[1736935086536,0.1237443,96951.0,96950.0,0.45951355]
[1736935086739,0.25775521,96951.0,96950.0,0.45951355]
[1736935087482,0.25775521,96951.0,96950.0,0.45551355]
[1736935087715,0.26075521,96951.0,96950.0,0.45551355]
[1736935087882,0.26075521,96951.0,96950.0,0.42551355]
[1736935088292,0.26375521,96951.0,96950.0,0.42551355]
[1736935088485,0.26475521,96951.0,96950.0,0.42551355]
[1736935088871,0.26375521,96951.0,96950.0,0.42551355]
[1736935089485,0.25775521,96951.0,96950.0,0.42551355]
[1736935089887,0.26075521,96951.0,96950.0,0.42551355]
[1736935090555,0.26175521,96951.0,96950.0,0.42551355]
[1736935090726,0.25875521,96951.0,96950.0,0.42551355]
[1736935090912,0.25775521,96951.0,96950.0,0.42551355]
[1736935091113,0.26075521,96951.0,96950.0,0.42551355]
[1736935091452,0.02351738,96951.0,96950.0,0.42551355]
[1736935091691,0.00566968,96951.0,96950.0,0.42551355]
[1736935092055,0.02351738,96951.0,96950.0,0.42551355]
[1736935093138,0.02051738,96951.0,96950.0,0.42551355]
[1736935094807,0.01951738,96951.0,96950.0,0.42651355]
[1736935095234,0.01951738,96951.0,96950.0,0.42851355]
[1736935095800,0.01951738,96951.0,96950.0,0.63480455]
[1736935095801,0.00166968,96951.0,96950.0,0.63480455]
[1736935097604,0.00166968,96951.0,96950.0,0.73301656]
[1736935097828,0.00166968,96951.0,96950.0,0.81401656]
[1736935099082,0.00166968,96951.0,96950.0,0.82449959]
[1736935099528,0.00166968,96951.0,96950.0,0.82349959]
[1736935099731,0.00166968,96951.0,96950.0,0.82149959]
[1736935099939,0.00166968,96951.0,96950.0,0.82349959]
[1736935100122,0.00166968,96951.0,96950.0,0.82649959]
[1736935100443,0.00166968,96951.0,96950.0,0.82149959]
[1736935100648,0.00266968,96951.0,96950.0,0.82849959]
[1736935100974,0.00266968,96951.0,96950.0,0.86979959]
[1736935101109,0.00266968,96951.0,96950.0,0.87579959]
[1736935101304,0.00366968,96951.0,96950.0,0.87579959]
[1736935101532,0.00266968,96951.0,96950.0,0.86679959]
[1736935102988,0.00266968,96951.0,96950.0,0.86979959]
[1736935103410,0.00366968,96951.0,96950.0,0.87379959]
[1736935103705,0.00366968,96951.0,96950.0,0.86031656]
[1736935104055,0.00366968,96951.0,96950.0,0.76510455]
[1736935104256,0.00366968,96951.0,96950.0,0.76210455]
[1736935104582,0.00366968,96951.0,96950.0,0.76510455]
[1736935107516,0.00366968,96951.0,96950.0,0.86510455]
[1736935108263,0.00366968,96951.0,96950.0,0.76510455]
[1736935108466,0.00366968,96951.0,96950.0,0.86510455]
[1736935108867,0.00366968,96951.0,96950.0,0.76510455]
[1736935119227,0.00366968,96951.0,96950.0,0.43251355]
[1736935120047,0.00366968,96951.0,96950.0,0.42951355]
[1736935120530,0.00166968,96951.0,96950.0,0.42651355]
[1736935120744,0.00166968,96951.0,96950.0,0.42951355]
[1736935121388,0.00166968,96951.0,96950.0,0.42851355]
[1736935121936,0.00166968,96951.0,96950.0,0.63480455]
[1736935122491,0.00166968,96951.0,96950.0,0.42851355]
[1736935122870,0.00166968,96951.0,96950.0,0.43051355]
[1736935131339,0.0450572,96951.0,96950.0,0.43051355]
[1736935132697,0.0450572,96951.0,96950.0,0.42851355]
[1736935133571,0.00266968,96951.0,96950.0,0.42551355]
[1736935134174,0.00166968,96951.0,96950.0,0.42551355]
[1736935134567,0.00166968,96951.0,96950.0,0.42651355]
[1736935143272,0.25271738,96951.0,96950.0,0.42651355]
[1736935143708,0.16951738,96951.0,96950.0,0.39651355]
[1736935144326,0.00166968,96951.0,96950.0,0.39651355]
[1736935144552,0.00166968,96951.0,96950.0,0.65130455]
[1736935147547,0.00166968,96951.0,96950.0,1.03395398]
[1736935148603,0.00166968,96951.0,96950.0,1.13596302]
[1736935148808,0.00166968,96951.0,96950.0,1.13896302]
[1736935149397,0.00166968,96951.0,96950.0,1.13596302]
[1736935149646,0.00166968,96951.0,96950.0,1.04620934]
[1736935150065,0.00166968,96951.0,96950.0,1.05020934]
[1736935150199,0.00266968,96951.0,96950.0,1.05020934]
[1736935150406,0.00266968,96951.0,96950.0,1.04620934]
[1736935151029,0.00266968,96951.0,96950.0,0.39851355]
[1736935151231,0.00366968,96951.0,96950.0,0.40251355]
[1736935152045,0.00366968,96951.0,96950.0,0.48241355]
[1736935152247,0.00366968,96951.0,96950.0,0.48341355]
[1736935152838,0.00166968,96951.0,96950.0,0.47841355]
[1736935153038,0.00166968,96951.0,96950.0,0.58464047]
[1736935153184,0.00166968,96951.0,96950.0,0.58764047]
[1736935153385,0.00166968,96951.0,96950.0,0.58464047]
[1736935153896,0.00166968,96951.0,96950.0,0.58864047]
[1736935156640,0.00166968,96951.0,96950.0,0.59905283]
[1736935158201,0.00166968,96951.0,96950.0,0.59505283]
[1736935158718,0.00166968,96951.0,96950.0,0.59305283]
[1736935158913,0.00166968,96951.0,96950.0,0.59705283]
[1736935159155,0.00166968,96951.0,96950.0,0.59905283]
[1736935163981,0.00166968,96951.0,96950.0,0.58864047]
[1736935164777,0.00166968,96951.0,96950.0,0.50574047]
[1736935165763,0.00162968,96951.0,96950.0,0.50574047]
[1736935169025,0.00162968,96951.0,96950.0,0.84136739]
[1736935169959,0.00162968,96951.0,96950.0,0.98049792]
[1736935170106,0.00162968,96951.0,96950.0,0.97649792]
[1736935170634,0.00262968,96951.0,96950.0,0.98049792]
[1736935171026,0.00262968,96951.0,96950.0,0.97849792]
[1736935171236,0.00262968,96951.0,96950.0,1.52309792]
[1736935171439,0.00262968,96951.0,96950.0,1.52709792]
[1736935172177,0.00262968,96951.0,96950.0,1.38796739]
[1736935172596,0.00262968,96951.0,96950.0,1.57891969]
[1736935173157,0.002,96964.0,96963.0,0.1821523]
[1736935173358,0.002,96964.0,96963.0,0.94285845]
[1736935174202,0.002,96964.0,96963.0,1.08198898]
[1736935174704,0.003,96964.0,96963.0,1.08798898]
[1736935174872,0.002,96964.0,96963.0,1.08398898]
[1736935175260,0.003,96964.0,96963.0,1.09198898]
[1736935175435,0.003,96964.0,96963.0,0.95285845]
[1736935175633,0.00294575,96964.0,96963.0,0.95085845]
[1736935175792,0.00294575,96964.0,96963.0,0.95485845]
[1736935177038,0.00294575,96964.0,96963.0,0.96528917]
[1736935178267,0.00294575,96964.0,96963.0,1.05792563]
[1736935181298,0.00294575,96964.0,96963.0,0.96528917]
[1736935185059,0.00282161,96964.0,96963.0,0.96528917]
[1736935185776,0.00461418,96964.0,96963.0,1.05792563]
[1736935185978,0.00461418,96964.0,96963.0,0.75317333]
[1736935186515,0.00461418,96964.0,96963.0,0.85317333]
[1736935187567,0.00461418,96964.0,96963.0,0.76053687]
[1736935196791,0.00461418,96964.0,96963.0,0.76139037]
[1736935198644,0.00461418,96964.0,96963.0,0.54673273]
[1736935199682,0.00461418,96964.0,96963.0,0.33646873]
[1736935200046,0.00461418,96964.0,96963.0,0.33746873]
[1736935200414,0.00361418,96964.0,96963.0,0.32946873]
[1736935200608,0.00361418,96964.0,96963.0,0.32846873]
[1736935200837,0.00361418,96964.0,96963.0,0.33246873]
[1736935201061,0.00361418,96964.0,96963.0,0.3142535]
[1736935201404,0.12621418,96964.0,96963.0,0.3102535]
[1736935201752,0.14406188,96964.0,96963.0,0.3102535]
[1736935203696,0.07861418,96964.0,96963.0,0.3102535]
[1736935203880,0.07961418,96964.0,96963.0,0.3102535]
[1736935204451,0.07861418,96964.0,96963.0,0.3102535]
[1736935205100,0.00361418,96964.0,96963.0,0.36190625]
[1736935205323,0.00561418,96964.0,96963.0,0.36190625]
[1736935205729,0.00361418,96964.0,96963.0,0.36190625]
[1736935206615,0.00461418,96964.0,96963.0,0.36190625]
[1736935206807,0.00461418,96964.0,96963.0,0.36490625]
[1736935206990,0.00361418,96964.0,96963.0,0.36490625]
[1736935207195,0.00361418,96964.0,96963.0,0.36690625]
[1736935207809,0.00361418,96964.0,96963.0,0.36490625]
[1736935208369,0.00361418,96964.0,96963.0,0.36190625]
[1736935209090,0.00361418,96964.0,96963.0,0.37236103]
[1736935209322,0.00361418,96964.0,96963.0,0.37536103]
[1736935209677,0.00361418,96964.0,96963.0,0.37236103]
[1736935210212,0.00361418,96964.0,96963.0,0.37436103]
[1736935210421,0.00361418,96964.0,96963.0,0.65448795]
[1736935210624,0.00361418,96964.0,96963.0,0.65248795]
[1736935211060,0.00361418,96964.0,96963.0,0.65448795]
[1736935211556,0.00361418,96964.0,96963.0,0.65248795]
[1736935211920,0.00361418,96964.0,96963.0,0.65448795]
[1736935212120,0.00361418,96964.0,96963.0,0.65848795]
[1736935212321,0.00361418,96964.0,96963.0,0.65448795]
[1736935212761,0.00361418,96964.0,96963.0,0.65848795]
[1736935216904,0.00361418,96964.0,96963.0,0.70518795]
[1736935217106,0.00361418,96964.0,96963.0,0.70318795]
[1736935217551,0.00361418,96964.0,96963.0,0.70918795]
[1736935217791,0.00361418,96964.0,96963.0,0.70718795]
[1736935218001,0.00361418,96964.0,96963.0,0.71018795]
[1736935218829,0.00179319,96977.0,96976.0,0.206236]
[1736935219041,0.00179319,96977.0,96976.0,0.88213134]
[1736935219263,0.00179319,96977.0,96976.0,0.88110045]
[1736935220208,0.00179319,96977.0,96976.0,0.88210045]
[1736935220655,0.00179319,96977.0,96976.0,0.9032742]
[1736935221560,0.00170164,96977.0,96976.0,0.9032742]
[1736935222822,0.00170164,96977.0,96976.0,0.91355411]
[1736935223435,0.00170164,96977.0,96976.0,0.96215411]
[1736935223578,0.0776,97005.0,96989.0,0.1]
[1736935223778,0.0178477,97012.0,96989.0,0.1]
[1736935223779,0.0776,97012.0,96994.0,0.1]
[1736935223977,0.0776,97012.0,97007.0,0.206168]
[1736935224202,0.0776,97012.0,97007.0,0.515428]
[1736935224414,0.00179299,97017.0,97007.0,0.515428]
[1736935224826,0.00228774,97017.0,97007.0,0.515428]
[1736935225066,0.00228774,97017.0,97009.0,0.206166]
[1736935225281,0.00228774,97017.0,97009.0,0.30925]
[1736935225487,0.003,97012.0,97009.0,0.30925]
[1736935225892,0.0178477,97014.0,97009.0,0.30925]
[1736935226100,0.00328774,97017.0,97016.0,0.206151]
[1736935226277,0.00328774,97017.0,97016.0,0.515381]
[1736935226483,0.00228774,97017.0,97016.0,0.515381]
[1736935228474,0.00328774,97017.0,97016.0,0.515381]
[1736935229233,0.00228774,97017.0,97016.0,0.515381]
[1736935229442,0.00228774,97017.0,97016.0,0.60311207]
[1736935229855,0.00328774,97017.0,97016.0,0.60311207]
[1736935230054,0.00228774,97017.0,97016.0,0.60311207]
[1736935230523,0.00328774,97017.0,97016.0,0.60311207]
[1736935231752,0.00228774,97017.0,97016.0,0.60311207]
[1736935232127,0.00228774,97017.0,97016.0,0.60611207]
[1736935233056,0.00228774,97017.0,97016.0,0.60711207]
[1736935235692,0.00228774,97017.0,97016.0,0.60611207]
[1736935236897,0.00228774,97017.0,97016.0,0.60711207]
[1736935240752,0.02528774,97017.0,97016.0,0.40096107]
[1736935240934,0.02528774,97017.0,97016.0,0.31323]
[1736935245790,0.62691136,97017.0,97016.0,0.31323]
[1736935246175,0.64734081,97017.0,97016.0,0.31323]
[1736935246571,0.64734081,97017.0,97016.0,0.31223]
[1736935246839,0.64734081,97017.0,97016.0,0.18413]
[1736935246840,1.12402081,97017.0,97016.0,0.18413]
[1736935247052,1.00752081,97017.0,97016.0,0.00663392]
[1736935247459,1.03459724,97017.0,97016.0,0.00363392]
[1736935247662,1.04259724,97017.0,97016.0,0.00463392]
[1736935248063,1.04759724,97017.0,97016.0,0.00463392]
[1736935248675,0.023,96989.0,96979.0,0.1978629]
[1736935248887,0.0408477,96989.0,96979.0,0.1978629]
[1736935249055,0.0408477,96989.0,96979.0,0.5071929]
[1736935249884,0.0428477,96989.0,96980.0,0.0795]
[1736935250079,0.025,96989.0,96980.0,0.38884]
[1736935250312,0.0408477,96989.0,96980.0,0.38884]
[1736935250536,0.0428477,96989.0,96980.0,0.38884]
[1736935250981,0.0408477,96989.0,96980.0,0.38884]
[1736935251820,0.0408477,96989.0,96981.0,0.206225]
[1736935252029,0.0408477,96989.0,96980.0,0.38884]
[1736935252808,0.0428477,96989.0,96980.0,0.38884]
[1736935253269,0.0408477,96989.0,96980.0,0.38884]
[1736935253445,0.001,96989.0,96982.0,0.0475]
[1736935253624,0.001,96989.0,96988.0,0.206211]
[1736935253827,0.0178477,96991.0,96988.0,0.515531]
[1736935254218,0.002,96989.0,96988.0,0.515531]
[1736935254450,0.023,96990.0,96988.0,0.515531]
[1736935254871,0.001,96989.0,96988.0,0.515531]
[1736935256247,0.001,96989.0,96988.0,0.30932]
[1736935256677,0.023,96990.0,96988.0,0.30932]
[1736935257074,0.024,96990.0,96988.0,0.31032]
[1736935257281,0.023,96990.0,96988.0,0.31032]
[1736935257645,0.023,96990.0,96988.0,0.31232]
[1736935257839,0.0178477,96991.0,96988.0,0.31032]
[1736935258082,0.023,96990.0,96988.0,0.31032]
[1736935258287,0.0408477,96991.0,96988.0,0.31032]
[1736935258486,0.0408477,96991.0,96988.0,0.30932]
[1736935258907,0.0408477,96991.0,96988.0,0.31032]
[1736935259283,0.0408477,96991.0,96988.0,0.31132]
[1736935259498,0.0408477,96991.0,96988.0,0.30932]
[1736935259666,0.0408477,96991.0,96988.0,0.31032]
[1736935259873,0.0408477,96991.0,96988.0,0.31132]
[1736935261303,0.02027589,96994.0,96988.0,0.31132]
[1736935261685,0.02027589,96994.0,96989.0,0.206208]
[1736935262121,0.356187,96999.0,96989.0,0.30931]
[1736935262461,0.15,96999.0,96990.0,0.285705]
[1736935262668,0.15,96999.0,96990.0,0.595015]
[1736935262868,0.15,96999.0,96990.0,0.38881]
[1736935262869,0.356189,96999.0,96990.0,0.38881]
[1736935263233,0.15,96999.0,96990.0,0.38881]
[1736935263434,0.206174,97006.0,96992.0,0.206202]
[1736935263638,0.001,96999.0,96993.0,0.1286]
[1736935263961,0.003,96999.0,96994.0,0.2072289]
[1736935264167,0.001,96999.0,96995.0,0.0832]
[1736935264362,0.001,96999.0,96996.0,0.206194]
[1736935264571,0.001,96999.0,96996.0,0.515484]
[1736935265485,0.023,97008.0,96996.0,0.515484]
[1736935265689,0.023,96998.0,96996.0,0.515484]
[1736935265841,0.001,96999.0,96997.0,0.0850281]
[1736935266041,0.001,96999.0,96998.0,0.08423079]
[1736935266284,0.023,97011.0,97000.0,0.206185]
[1736935266494,0.023,97011.0,97002.0,0.206181]
[1736935266834,0.12274989,97030.0,97003.0,0.1286]
[1736935267063,0.206146,97019.0,97007.0,0.20617]
[1736935267260,0.32887189,97030.0,97013.0,0.206157]
[1736935267458,0.20792457,97025.0,97008.0,0.00103072]
[1736935267662,0.20792457,97025.0,97008.0,0.20719872]
[1736935267863,0.206132,97025.0,97008.0,0.20719872]
[1736935268105,0.023,97024.0,97008.0,0.20719872]
[1736935268261,0.023,97024.0,97009.0,0.0832]
[1736935268482,0.206136,97023.0,97010.0,0.00103068]
[1736935269073,0.023,97016.0,97010.0,0.00103068]
[1736935269275,0.023,97016.0,97010.0,0.30925]
[1736935269557,0.15,97022.0,97011.0,0.08161277]
[1736935269726,0.15,97022.0,97011.0,0.08161275]
[1736935269727,0.023,97021.0,97011.0,0.08161275]
[1736935269933,0.023,97021.0,97012.0,0.20616]
[1736935270493,0.001,97016.0,97012.0,0.20616]
[1736935270644,0.023,97023.0,97012.0,0.5154]
[1736935270841,0.023,97023.0,97014.0,0.0832]
[1736935271044,0.023,97023.0,97016.0,0.0454]
[1736935271245,0.15,97034.0,97022.0,0.0832]
[1736935271447,0.023,97025.0,97022.0,0.0832]
[1736935271830,0.023,97025.0,97023.0,0.20716658]
[1736935272024,0.00179382,97035.0,97023.0,0.20716658]
[1736935272025,0.00179382,97035.0,97023.0,0.72250257]
[1736935272252,0.02479299,97026.0,97025.0,0.206132]
[1736935272459,0.02479299,97026.0,97025.0,0.515332]
[1736935272986,0.02479299,97026.0,97025.0,0.59691495]
[1736935273419,0.02479299,97026.0,97025.0,0.3092]
[1736935273961,0.00170146,97026.0,97025.0,0.3092]
[1736935275479,0.00170146,97026.0,97025.0,0.3112]
[1736935275703,0.00170146,97026.0,97025.0,0.3152]
[1736935278997,0.00170146,97026.0,97025.0,0.604532]
[1736935279220,0.00170146,97026.0,97025.0,0.6855992]
[1736935279511,0.00170146,97026.0,97025.0,0.7269992]
[1736935279715,0.00370146,97026.0,97025.0,0.7249992]
[1736935279923,0.00370146,97026.0,97025.0,0.82922612]
[1736935280103,0.00470146,97026.0,97025.0,0.82922612]
[1736935280304,0.00470146,97026.0,97025.0,0.92922612]
[1736935280867,0.00270146,97026.0,97025.0,0.92922612]
[1736935281414,0.00270146,97026.0,97025.0,0.93966814]
[1736935281746,0.00170146,97026.0,97025.0,0.93966814]
[1736935281948,0.00170146,97026.0,97025.0,0.94166814]
[1736935282582,0.00170146,97026.0,97025.0,0.93966814]
[1736935282784,0.00170146,97026.0,97025.0,0.92922612]
[1736935282931,0.00170146,97026.0,97025.0,0.93222612]
[1736935283136,0.00170146,97026.0,97025.0,0.93622612]
[1736935283553,0.00170146,97026.0,97025.0,0.92922612]
[1736935283764,0.00270146,97026.0,97025.0,0.93822612]
[1736935284182,0.00170146,97026.0,97025.0,0.92922612]
[1736935284405,0.00270146,97026.0,97025.0,0.93622612]
[1736935284832,0.00170146,97026.0,97025.0,0.92922612]
[1736935285042,0.00270146,97026.0,97025.0,0.94222612]
[1736935285224,0.00270146,97026.0,97025.0,0.7379992]
[1736935285420,0.00270146,97026.0,97025.0,0.656932]
[1736935286226,0.00270146,97026.0,97025.0,0.652932]
[1736935286431,0.00170146,97026.0,97025.0,0.643932]
[1736935286631,0.00170146,97026.0,97025.0,0.644932]
[1736935286879,0.00170146,97026.0,97025.0,0.647932]
[1736935287109,0.00170146,97026.0,97025.0,0.74915892]
[1736935287543,0.00270146,97026.0,97025.0,0.75515892]
[1736935287754,0.00270146,97026.0,97025.0,0.650932]
[1736935288504,0.00270146,97026.0,97025.0,0.649932]
[1736935288702,0.00270146,97026.0,97025.0,0.652932]
[1736935289132,0.00270146,97026.0,97025.0,0.75715892]
[1736935289553,0.00270146,97026.0,97025.0,0.86138584]
[1736935291632,0.00270146,97026.0,97025.0,0.86223884]
[1736935298167,0.00270146,97026.0,97025.0,0.75801192]
[1736935307639,0.00270146,97026.0,97025.0,0.319053]
[1736935307640,0.37992838,97026.0,97025.0,0.319053]
[1736935307771,0.37992838,97026.0,97025.0,0.24366409]
[1736935307772,0.28592838,97026.0,97025.0,0.24366409]
[1736935307979,0.54290909,97026.0,97025.0,0.24366409]
[1736935308507,0.379166,97009.0,97008.0,0.09227694]
[1736935308708,0.48339292,97009.0,97008.0,0.07927692]
[1736935308929,0.379206,96990.0,96977.0,0.07927692]
[1736935309104,0.379206,96990.0,96989.0,0.00134805]
[1736935310555,0.379206,96990.0,96989.0,0.00234805]
[1736935311159,0.379206,96990.0,96989.0,0.00334805]
[1736935312148,0.379206,96990.0,96989.0,0.00234805]
[1736935312349,0.385206,96990.0,96989.0,0.00234805]
[1736935312771,0.379206,96990.0,96989.0,0.00234805]
[1736935313087,0.385206,96990.0,96989.0,0.00234805]
[1736935313250,0.385206,96990.0,96989.0,0.00134805]
[1736935313450,0.387206,96990.0,96989.0,0.00134805]
[1736935313669,0.393206,96990.0,96989.0,0.00134805]
[1736935313869,0.387206,96990.0,96989.0,0.00134805]
[1736935314069,0.515527,96988.0,96948.0,0.0147185]
[1736935314292,0.3,96930.0,96929.0,0.22969235]
[1736935314492,0.30422692,96930.0,96929.0,0.22969235]
[1736935314652,0.20422692,96930.0,96929.0,0.22969235]
[1736935315077,0.1,96932.0,96929.0,0.22969235]
[1736935315283,0.25,96935.0,96929.0,0.22969235]
[1736935315537,0.25,96935.0,96927.0,0.0009026]
[1736935315739,0.023,96932.0,96927.0,0.0009026]
[1736935315939,0.023,96930.0,96929.0,0.000853]
[1736935316141,0.373,96930.0,96929.0,0.000853]
[1736935316498,0.47722692,96930.0,96929.0,0.000853]
[1736935317226,0.47922692,96930.0,96929.0,0.000853]
[1736935317552,0.48522692,96930.0,96929.0,0.000853]
[1736935317758,0.48322692,96930.0,96929.0,0.000853]
[1736935318205,0.48622692,96930.0,96929.0,0.000853]
[1736935318407,0.35,96928.0,96927.0,0.0009026]
[1736935318658,0.45422692,96928.0,96927.0,0.0009026]
[1736935318884,0.023,96901.0,96900.0,0.03190258]
[1736935319100,0.273,96901.0,96900.0,0.03239846]
[1736935319316,0.373,96901.0,96900.0,0.03239846]
[1736935320302,0.48122692,96901.0,96900.0,0.03239846]
[1736935320810,0.579436,96882.0,96881.0,0.001]
[1736935321081,0.68366292,96882.0,96881.0,0.001]
[1736935321459,0.273,96882.0,96881.0,0.001]